bitfinex-derivatives/quotes_BTCF0:USTF0_20250630
["timestamp","ask_amount","ask_price","bid_price","bid_amount"]
[1751291524266,0.23486647,107660.0,107650.0,1.09226974]
[1751291524776,0.24486647,107660.0,107650.0,1.09426974]
[1751291524976,0.24486647,107660.0,107650.0,1.1496343]
[1751291525178,0.24486647,107660.0,107650.0,1.09426974]
[1751291525679,0.05913997,107660.0,107650.0,1.09426974]
[1751291526071,0.24486647,107660.0,107650.0,1.12436974]
[1751291527977,0.30846647,107660.0,107650.0,0.59181162]
[1751291528477,0.30846647,107660.0,107650.0,0.96306974]
[1751291529373,0.30846647,107660.0,107650.0,0.19911162]
[1751291529578,0.67972459,107660.0,107650.0,0.00299292]
[1751291529875,1.0574838,107660.0,107650.0,0.00299292]
[1751291531177,0.1857437,107650.0,107640.0,1.55652]
[1751291531376,1.09959474,107650.0,107640.0,1.55465997]
[1751291532376,1.09959474,107650.0,107640.0,1.55565997]
[1751291532377,0.73633662,107650.0,107640.0,1.55565997]
[1751291532577,1.10759474,107650.0,107640.0,1.41669997]
[1751291533480,1.10759474,107650.0,107640.0,0.001]
[1751291533674,1.10759474,107650.0,107640.0,0.58196]
[1751291534270,1.14009474,107650.0,107640.0,0.58196]
[1751291534979,1.14009474,107650.0,107640.0,0.5818]
[1751291536277,1.14009474,107650.0,107640.0,0.001]
[1751291537890,1.14009474,107650.0,107640.0,1e-07]
[1751291538078,0.1857955,107620.0,107610.0,0.09388925]
[1751291538479,0.77747829,107610.0,107600.0,0.0896057]
[1751291538776,1.14873641,107610.0,107600.0,0.73466202]
[1751291538975,1.14923287,107610.0,107600.0,0.73466202]
[1751291539173,1.14923287,107610.0,107600.0,0.15406202]
[1751291539372,1.14923287,107610.0,107600.0,0.73458202]
[1751291539373,0.77797475,107610.0,107600.0,0.73458202]
[1751291539578,0.77997475,107610.0,107600.0,0.74558202]
[1751291540178,0.65997475,107610.0,107600.0,0.74558202]
[1751291542380,1.03123287,107610.0,107600.0,0.16510202]
[1751291542781,1.03123287,107610.0,107600.0,0.74538202]
[1751291544178,1.03123287,107610.0,107600.0,0.16510202]
[1751291544375,1.03123287,107610.0,107600.0,0.13570862]
[1751291544778,0.1858301,107600.0,107590.0,0.00092941]
[1751291544987,0.97868822,107600.0,107590.0,0.71996941]
[1751291545187,0.97868822,107600.0,107590.0,0.13992941]
[1751291545388,0.60792656,107600.0,107590.0,0.13992941]
[1751291546282,0.61492656,107600.0,107590.0,0.14092941]
[1751291546880,0.61492656,107600.0,107590.0,0.32677671]
[1751291547380,0.61492656,107600.0,107590.0,0.35857671]
[1751291547781,0.25412656,107600.0,107590.0,0.35857671]
[1751291547981,0.25412656,107600.0,107590.0,0.43376098]
[1751291548181,0.22372656,107600.0,107590.0,0.43376098]
[1751291548487,0.19332656,107600.0,107590.0,0.46446098]
[1751291549690,0.19332656,107600.0,107590.0,0.82526098]
[1751291550088,0.19332656,107600.0,107590.0,1.1965191]
[1751291550089,0.00749646,107600.0,107590.0,1.1965191]
[1751291550392,0.19332656,107600.0,107590.0,1.2965191]
[1751291550597,0.00749646,107600.0,107590.0,1.2965191]
[1751291551088,0.19332656,107600.0,107590.0,1.2965191]
[1751291551290,0.32332656,107600.0,107590.0,0.92526098]
[1751291551593,0.32332656,107600.0,107590.0,1.2965191]
[1751291552000,0.13749646,107600.0,107590.0,1.2965191]
[1751291552182,0.32332646,107600.0,107590.0,1.2965191]
[1751291552987,0.13749646,107600.0,107590.0,1.8425191]
[1751291553192,0.62400865,107630.0,107610.0,0.1858128]
[1751291553193,0.13979081,107620.0,107610.0,0.1858128]
[1751291553389,0.36104515,107630.0,107620.0,0.1857955]
[1751291553586,0.50104515,107630.0,107620.0,0.2490955]
[1751291554097,0.50104515,107630.0,107620.0,0.6098955]
[1751291554499,0.50104515,107630.0,107620.0,0.2490955]
[1751291556094,0.4512834,107630.0,107620.0,0.2490955]
[1751291557396,0.4839834,107630.0,107620.0,0.2490955]
[1751291558198,0.4929834,107630.0,107620.0,0.2500955]
[1751291558890,0.4929834,107630.0,107620.0,0.001]
[1751291559095,0.4929834,107630.0,107620.0,0.71984]
[1751291559096,1.22504152,107630.0,107620.0,0.71984]
[1751291561195,1.22504152,107630.0,107620.0,0.001]
[1751291561397,1.22504152,107630.0,107620.0,0.71992]
[1751291561996,1.22504152,107630.0,107620.0,0.9057155]
[1751291562196,1.22504152,107630.0,107620.0,0.71992]
[1751291562594,0.149,107630.0,107620.0,1.63777362]
[1751291562793,0.149,107630.0,107620.0,1.83467362]
[1751291563195,0.009,107630.0,107620.0,1.83467362]
[1751291563497,0.009,107630.0,107620.0,1.90873513]
[1751291564396,0.00949646,107630.0,107620.0,1.90873513]
[1751291564699,0.01949646,107630.0,107620.0,1.90873513]
[1751291566802,0.20527476,107630.0,107620.0,1.90873513]
[1751291567100,0.01949646,107630.0,107620.0,1.90873513]
[1751291567504,0.01949646,107630.0,107620.0,2.20473513]
[1751291567699,0.20527476,107630.0,107620.0,2.13067362]
[1751291568003,0.01949646,107630.0,107620.0,2.13067362]
[1751291568301,0.01949646,107630.0,107620.0,1.41175362]
[1751291569406,0.20527476,107630.0,107620.0,2.12995362]
[1751291571107,0.20527476,107630.0,107620.0,2.12991362]
[1751291571407,0.23787476,107630.0,107620.0,2.12991362]
[1751291571704,0.23787476,107630.0,107620.0,2.20397513]
[1751291573703,0.20527476,107630.0,107620.0,2.20397513]
[1751291574507,0.01949646,107630.0,107620.0,2.12991362]
[1751291574707,0.01949646,107630.0,107620.0,2.14527828]
[1751291578001,0.01949646,107630.0,107620.0,2.12991362]
[1751291578198,0.01949646,107630.0,107620.0,2.14489671]
[1751291579010,0.20527466,107630.0,107620.0,2.14489671]
[1751291579206,0.20527466,107630.0,107620.0,0.66257859]
[1751291579408,0.26837466,107630.0,107620.0,1.33853701]
[1751291579606,0.30157466,107630.0,107620.0,1.33853701]
[1751291579911,0.30157466,107630.0,107620.0,1.35388862]
[1751291580100,0.30157466,107630.0,107620.0,0.77572862]
[1751291580304,0.66237466,107630.0,107620.0,0.99324862]
[1751291581102,0.30157466,107630.0,107620.0,0.99324862]
[1751291581311,0.30157466,107630.0,107620.0,1.35404862]
[1751291584614,0.30157466,107630.0,107620.0,0.99324862]
[1751291586720,0.30157466,107630.0,107620.0,0.91918711]
[1751291588319,0.66237466,107630.0,107620.0,0.91918711]
[1751291588525,1.03363278,107630.0,107620.0,0.80565312]
[1751291588718,1.03363278,107630.0,107620.0,0.73159161]
[1751291589015,1.05018652,107630.0,107620.0,0.73159161]
[1751291589419,1.05018652,107630.0,107620.0,0.001]
[1751291589618,1.05018652,107630.0,107620.0,0.57868]
[1751291591327,0.6789284,107630.0,107620.0,0.7644755]
[1751291592822,1.05018652,107630.0,107620.0,0.001]
[1751291593124,1.05018652,107630.0,107620.0,0.57868]
[1751291595312,1.05018652,107630.0,107620.0,0.001]
[1751291595525,1.05018652,107630.0,107620.0,0.57872]
[1751291597818,1.05018652,107630.0,107620.0,0.001]
[1751291597819,1.48551859,107630.0,107620.0,0.001]
[1751291598221,1.60551859,107630.0,107620.0,0.001]
[1751291601522,1.60551859,107630.0,107620.0,0.9020755]
[1751291601523,1.2889284,107630.0,107620.0,0.9020755]
[1751291601731,1.2889284,107630.0,107620.0,0.91745441]
[1751291601923,0.9381284,107630.0,107620.0,1.2340446]
[1751291602222,0.9381284,107630.0,107620.0,1.6268446]
[1751291602425,0.4381284,107630.0,107620.0,1.6268446]
[1751291602821,0.3722284,107630.0,107620.0,1.6592446]
[1751291603021,0.3418284,107630.0,107620.0,1.6592446]
[1751291604628,0.3730284,107630.0,107620.0,1.6592446]
[1751291605030,0.7338284,107630.0,107620.0,0.23417441]
[1751291605232,0.7646284,107630.0,107620.0,0.91745441]
[1751291605924,0.4038284,107630.0,107620.0,0.91745441]
[1751291606428,0.4038284,107630.0,107620.0,0.94765441]
[1751291607028,0.4038284,107630.0,107620.0,1.2956446]
[1751291607528,0.3418284,107630.0,107620.0,1.2956446]
[1751291607924,0.3418284,107630.0,107620.0,1.33985441]
[1751291608923,0.3418284,107630.0,107620.0,1.71073186]
[1751291611731,0.3418284,107630.0,107620.0,1.78479337]
[1751291613536,0.3418284,107630.0,107620.0,1.71073186]
[1751291614444,0.3418284,107630.0,107620.0,1.78494713]
[1751291615142,0.3418284,107630.0,107620.0,0.83634968]
[1751291615341,0.3418284,107630.0,107620.0,1.41402968]
[1751291616340,0.3418284,107630.0,107620.0,0.69878968]
[1751291616535,0.3418284,107630.0,107620.0,0.30658968]
[1751291616735,0.4370284,107630.0,107620.0,1.02162968]
[1751291617137,0.4370284,107630.0,107620.0,1.02158968]
[1751291618138,0.4370284,107630.0,107620.0,1.05318968]
[1751291622260,0.4370284,107630.0,107620.0,0.99138968]
[1751291623743,0.7978284,107630.0,107620.0,0.99138968]
[1751291623944,0.7978284,107630.0,107620.0,0.73137891]
[1751291624343,1.16870585,107630.0,107620.0,0.15373891]
[1751291624651,1.16870585,107630.0,107620.0,0.80559418]
[1751291624848,1.16870585,107630.0,107620.0,0.91717441]
[1751291625748,1.16870585,107630.0,107620.0,0.73137891]
[1751291626242,1.16870585,107630.0,107620.0,0.91717441]
[1751291626749,1.16870585,107630.0,107620.0,0.73137891]
[1751291627846,1.11439195,107630.0,107620.0,0.73137891]
[1751291630550,1.11439195,107630.0,107620.0,0.91717441]
[1751291630738,1.11439195,107630.0,107620.0,0.73137891]
[1751291631245,1.11439195,107630.0,107620.0,0.91717441]
[1751291631946,1.11439195,107630.0,107620.0,0.15377891]
[1751291632153,1.11439195,107630.0,107620.0,0.73141891]
[1751291635556,1.11439195,107630.0,107620.0,0.01637891]
[1751291640650,1.11439195,107630.0,107620.0,0.20217441]
[1751291640856,0.7978284,107630.0,107620.0,0.51873796]
[1751291641353,0.7978284,107630.0,107620.0,0.20217441]
[1751291641547,0.7334284,107630.0,107620.0,0.55103796]
[1751291641743,0.7334284,107630.0,107620.0,0.58393796]
[1751291641948,0.3418285,107630.0,107620.0,1.01895323]
[1751291642153,0.3218285,107630.0,107620.0,1.03750705]
[1751291642554,0.1360502,107630.0,107620.0,1.03750705]
[1751291643148,0.11949646,107630.0,107620.0,1.13750705]
[1751291644358,0.30527466,107630.0,107620.0,1.13750705]
[1751291646456,0.30527466,107630.0,107620.0,1.75238705]
[1751291647264,0.30527466,107630.0,107620.0,1.75234705]
[1751291653161,0.30527466,107630.0,107620.0,1.65957796]
[1751291653362,0.30527466,107630.0,107620.0,1.7337057]
[1751291654072,0.30527466,107630.0,107620.0,0.70230215]
[1751291654756,0.30527466,107630.0,107620.0,1.41702215]
[1751291655157,0.30527466,107630.0,107620.0,1.02332215]
[1751291655357,0.39897466,107630.0,107620.0,0.99102215]
[1751291657370,0.39897466,107630.0,107620.0,1.3075857]
[1751291657666,0.39897466,107630.0,107620.0,0.99102215]
[1751291657965,0.39897466,107630.0,107620.0,1.3399857]
[1751291658767,0.33727466,107630.0,107620.0,1.7007857]
[1751291658967,0.33727466,107630.0,107620.0,1.7334857]
[1751291661171,0.33727466,107630.0,107620.0,1.7007857]
[1751291661370,0.37047466,107630.0,107620.0,1.3399857]
[1751291661574,0.30527466,107630.0,107620.0,1.3399857]
[1751291661867,0.30527466,107630.0,107620.0,1.3730857]
[1751291662166,0.33557466,107630.0,107620.0,1.3730857]
[1751291662567,0.36877466,107630.0,107620.0,1.3730857]
[1751291664179,0.36877466,107630.0,107620.0,1.3075857]
[1751291664364,0.36877466,107630.0,107620.0,0.5928657]
[1751291664565,0.36877466,107630.0,107620.0,1.3075057]
[1751291664761,0.36877466,107630.0,107620.0,0.99094215]
[1751291664966,0.36877466,107630.0,107620.0,1.3075057]
[1751291667573,0.36877466,107630.0,107620.0,1.3388057]
[1751291668369,0.33557466,107630.0,107620.0,1.3388057]
[1751291668565,0.30527476,107630.0,107620.0,1.65867796]
[1751291670179,0.11949646,107630.0,107620.0,1.75867796]
[1751291670370,0.11949646,107630.0,107620.0,1.83293399]
[1751291670978,0.30527476,107630.0,107620.0,1.83293399]
[1751291671173,0.30527476,107630.0,107620.0,0.68323796]
[1751291671364,0.30527476,107630.0,107620.0,0.30775235]
[1751291671569,0.33757476,107630.0,107620.0,0.99101235]
[1751291671770,0.36877476,107630.0,107620.0,0.99101235]
[1751291671970,0.36877476,107630.0,107620.0,1.6683759]
[1751291672771,0.33757476,107630.0,107620.0,1.7004759]
[1751291672971,0.33757476,107630.0,107620.0,1.7327759]
[1751291675282,0.33757476,107630.0,107620.0,1.6683759]
[1751291675579,0.36977476,107630.0,107620.0,1.3075759]
[1751291675769,0.36977476,107630.0,107620.0,0.99085235]
[1751291675976,0.33757476,107630.0,107620.0,1.6682159]
[1751291676174,0.33757476,107630.0,107620.0,1.7308159]
[1751291676976,0.30527476,107630.0,107620.0,1.7308159]
[1751291678084,0.30527476,107630.0,107620.0,1.65653796]
[1751291678488,0.11949646,107630.0,107620.0,1.65653796]
[1751291678680,0.11949646,107630.0,107620.0,1.75653796]
[1751291678885,0.11949646,107630.0,107620.0,1.84930705]
[1751291679388,0.11949646,107630.0,107620.0,2.03513905]
[1751291679587,0.00949646,107630.0,107620.0,2.61824669]
[1751291680087,6e-08,107630.0,107620.0,2.61824669]
[1751291680280,0.0339,107660.0,107650.0,0.1857437]
[1751291680481,0.34776637,107660.0,107650.0,1.66807849]
[1751291680783,0.34776637,107660.0,107650.0,1.76457849]
[1751291680983,0.16203997,107660.0,107650.0,1.76457849]
[1751291681186,0.34776637,107660.0,107650.0,1.76457849]
[1751291681483,0.16203997,107660.0,107650.0,1.76457849]
[1751291681786,0.34776637,107660.0,107650.0,1.76457849]
[1751291682888,0.34776637,107660.0,107650.0,1.7746513]
[1751291683078,0.37876637,107660.0,107650.0,1.7746513]
[1751291683277,0.38676637,107660.0,107650.0,1.7766513]
[1751291683484,0.38676637,107660.0,107650.0,1.85231819]
[1751291683887,0.38676637,107660.0,107650.0,1.75581819]
[1751291685087,0.38676637,107660.0,107650.0,1.43917464]
[1751291686490,0.38676637,107660.0,107650.0,1.43913464]
[1751291686877,0.38676637,107660.0,107650.0,1.00409524]
[1751291689589,0.38676637,107660.0,107650.0,1.36489524]
[1751291689990,0.38676637,107660.0,107650.0,1.00409524]
[1751291690592,0.38676637,107660.0,107650.0,1.00401524]
[1751291690789,1.06412992,107660.0,107650.0,0.27978243]
[1751291690997,1.06412992,107660.0,107650.0,0.91827554]
[1751291691494,1.06412992,107660.0,107650.0,0.15553184]
[1751291691690,1.06412992,107660.0,107650.0,0.73253184]
[1751291692393,1.06412992,107660.0,107650.0,0.01837184]
[1751291692595,1.06412992,107660.0,107650.0,0.73253184]
[1751291694096,1.0809876,107660.0,107650.0,0.14015292]
[1751291694301,1.0809876,107660.0,107650.0,0.71715292]
[1751291694498,1.2667636,107660.0,107650.0,0.00299292]
[1751291694707,0.1857782,107630.0,107620.0,0.32050672]
[1751291694995,1.36159608,107630.0,107620.0,0.75668746]
[1751291695197,1.42279608,107630.0,107620.0,0.75668746]
[1751291696297,1.10623253,107630.0,107620.0,0.83687493]
[1751291696484,0.74843253,107630.0,107620.0,0.57796]
[1751291696686,0.74843253,107630.0,107620.0,0.7637554]
[1751291697188,1.06499608,107630.0,107620.0,0.7637554]
[1751291698295,1.06499608,107630.0,107620.0,0.57796]
[1751291699087,1.06499608,107630.0,107620.0,0.59248041]
[1751291699994,0.74843253,107630.0,107620.0,0.59248041]
[1751291700299,1.06499608,107630.0,107620.0,0.77827591]
[1751291700498,0.74843253,107630.0,107620.0,0.77827591]
[1751291701499,0.74843253,107630.0,107620.0,1.09483946]
[1751291701697,0.38763253,107630.0,107620.0,1.45563946]
[1751291701997,0.32643253,107630.0,107620.0,0.59211591]
[1751291702192,0.71783253,107630.0,107620.0,0.91547591]
[1751291702392,0.35703253,107630.0,107620.0,0.91547591]
[1751291702700,0.71783253,107630.0,107620.0,0.91547591]
[1751291702895,1.03439608,107630.0,107620.0,0.91547591]
[1751291703693,0.71783253,107630.0,107620.0,0.91547591]
[1751291704087,0.71783253,107630.0,107620.0,1.23203946]
[1751291704291,0.35703253,107630.0,107620.0,1.23203946]
[1751291704496,0.68723253,107630.0,107620.0,0.15268041]
[1751291704698,0.71793253,107630.0,107620.0,0.91715591]
[1751291705198,1.03449608,107630.0,107620.0,0.15268041]
[1751291705499,1.03449608,107630.0,107620.0,0.73188041]
[1751291706698,1.03449608,107630.0,107620.0,0.91763591]
[1751291706897,1.03449608,107630.0,107620.0,0.73184041]
[1751291707394,1.03449608,107630.0,107620.0,0.59384041]
[1751291708401,1.03449608,107630.0,107620.0,0.77963601]
[1751291708796,1.03449608,107630.0,107620.0,0.59384041]
[1751291708996,1.03449608,107630.0,107620.0,0.77963601]
[1751291709201,1.03449608,107630.0,107620.0,0.59384041]
[1751291709702,1.01783467,107630.0,107620.0,0.59384041]
[1751291710698,0.70127112,107630.0,107620.0,0.59384041]
[1751291710903,1.01783467,107630.0,107620.0,0.59384041]
[1751291711102,1.04783467,107630.0,107620.0,0.59384041]
[1751291711698,0.73127112,107630.0,107620.0,0.59316041]
[1751291711902,1.04783467,107630.0,107620.0,0.01552041]
[1751291712103,1.04783467,107630.0,107620.0,0.59316041]
[1751291712800,1.04783467,107630.0,107620.0,0.73092041]
[1751291713795,1.04783467,107630.0,107600.0,1.12706355]
[1751291713796,0.1858128,107610.0,107600.0,1.12706355]
[1751291713998,0.1858128,107610.0,107600.0,1.17427266]
[1751291713999,0.99342458,107610.0,107600.0,1.17427266]
[1751291714204,1.05662458,107610.0,107600.0,0.91547266]
[1751291714400,1.41742458,107610.0,107600.0,0.72964256]
[1751291714606,1.41767281,107610.0,107600.0,0.15236256]
[1751291714799,1.41767281,107610.0,107600.0,0.72964256]
[1751291715206,1.41767281,107610.0,107600.0,0.01452256]
[1751291715404,0.18583,107600.0,107590.0,0.00092941]
[1751291715603,1.08664178,107600.0,107590.0,0.71588941]
[1751291716207,1.08689001,107600.0,107590.0,0.57804941]
[1751291717605,1.08689001,107600.0,107590.0,0.00092941]
[1751291717802,1.08689001,107600.0,107590.0,0.57804941]
[1751291720807,1.08689001,107600.0,107590.0,0.76389681]
[1751291721004,0.77032646,107600.0,107590.0,0.18677681]
[1751291721204,0.77332646,107600.0,107590.0,0.76993681]
[1751291721707,1.08989001,107600.0,107590.0,0.76993681]
[1751291722310,1.08989001,107600.0,107590.0,0.58408941]
[1751291722703,1.08989001,107600.0,107590.0,0.76993681]
[1751291723313,1.08989001,107600.0,107590.0,0.58408941]
[1751291724706,0.72909001,107600.0,107590.0,0.19277681]
[1751291724907,0.31932646,107600.0,107590.0,1.22442036]
[1751291725112,0.31932646,107600.0,107590.0,1.32132036]
[1751291725410,0.31932646,107600.0,107590.0,1.00475681]
[1751291725599,0.71152646,107600.0,107590.0,1.00475681]
[1751291726910,0.71152646,107600.0,107590.0,1.32132036]
[1751291727307,0.71152646,107600.0,107590.0,1.33584559]
[1751291727709,0.71152646,107600.0,107590.0,1.01928204]
[1751291727909,0.71202292,107600.0,107590.0,1.01928204]
[1751291730225,0.71202292,107600.0,107590.0,1.33584559]
[1751291730415,0.31982292,107600.0,107590.0,1.69664559]
[1751291730910,0.13399292,107600.0,107590.0,1.69664559]
[1751291731101,0.31982292,107600.0,107590.0,1.69664559]
[1751291736809,0.31982292,107600.0,107590.0,1.33584559]
[1751291737014,0.31982292,107600.0,107590.0,1.38008204]
[1751291737212,0.31982292,107600.0,107590.0,1.77076502]
[1751291737917,0.31982292,107600.0,107590.0,1.40996502]
[1751291738113,0.31982292,107600.0,107590.0,1.33584559]
[1751291738309,0.31982292,107600.0,107590.0,1.40996502]
[1751291738506,0.31982292,107600.0,107590.0,1.09340147]
[1751291738710,0.31982292,107600.0,107590.0,1.33584559]
[1751291740021,0.31982292,107600.0,107590.0,1.32132036]
[1751291740420,0.31982292,107600.0,107590.0,1.33584439]
[1751291740619,0.31982292,107600.0,107590.0,1.32132036]
[1751291740920,0.31982292,107600.0,107590.0,1.33584447]
[1751291741119,0.31982292,107600.0,107590.0,1.33584438]
[1751291741316,0.13399292,107600.0,107590.0,1.69664438]
[1751291741514,0.10095702,107600.0,107590.0,2.31459502]
[1751291741823,0.00399292,107600.0,107590.0,2.31459502]
[1751291742015,0.00399292,107600.0,107590.0,2.44451398]
[1751291742217,0.00399292,107600.0,107590.0,2.12795043]
[1751291742715,0.08399292,107600.0,107590.0,2.12795043]
[1751291742915,0.08399292,107600.0,107590.0,1.99803147]
[1751291743322,0.08399292,107600.0,107590.0,1.99703147]
[1751291744915,0.08399292,107600.0,107590.0,2.29303147]
[1751291745421,0.08399292,107600.0,107590.0,2.36717596]
[1751291745823,0.08399292,107600.0,107590.0,1.15065241]
[1751291746123,0.08399292,107600.0,107590.0,2.18129596]
[1751291746319,0.08399292,107600.0,107590.0,2.18125596]
[1751291747127,0.08399292,107600.0,107590.0,1.39307147]
[1751291747314,0.08399292,107600.0,107590.0,2.10711147]
[1751291748023,0.08399292,107600.0,107590.0,2.18125596]
[1751291748822,0.08399292,107600.0,107590.0,2.10711147]
[1751291749824,0.08399292,107600.0,107590.0,2.09258745]
[1751291750625,0.08399292,107600.0,107590.0,2.10710963]
[1751291751525,0.08399292,107600.0,107590.0,2.18125412]
[1751291753421,0.08399292,107600.0,107590.0,2.36713412]
[1751291753628,0.00399292,107600.0,107590.0,2.85955318]
[1751291753926,2e-08,107600.0,107590.0,2.85955318]
[1751291754124,2e-08,107600.0,107590.0,2.98947214]
[1751291755126,2e-08,107600.0,107590.0,2.73947214]
[1751291755421,2e-08,107600.0,107590.0,2.98947214]
[1751291756728,2e-08,107600.0,107590.0,1.95886859]
[1751291756921,2e-08,107600.0,107590.0,2.23694859]
[1751291758031,0.01000002,107600.0,107590.0,1.52298859]
[1751291758225,0.04150002,107600.0,107590.0,2.23690859]
[1751291758825,0.01000002,107600.0,107590.0,2.23690859]
[1751291759222,0.01000002,107600.0,107590.0,2.22238641]
[1751291760236,0.01211816,107620.0,107610.0,0.1858127]
[1751291760436,0.11,107620.0,107610.0,2.11201627]
[1751291760730,0.06052294,107640.0,107630.0,0.1857781]
[1751291760930,0.18052294,107640.0,107630.0,1.57702165]
[1751291761532,0.36628384,107640.0,107630.0,1.2604581]
[1751291761737,0.72708384,107640.0,107630.0,1.21622165]
[1751291761926,0.36628384,107640.0,107630.0,1.21622165]
[1751291762833,0.36628384,107640.0,107630.0,1.57702165]
[1751291763629,0.40218384,107640.0,107630.0,1.21722165]
[1751291763826,1.07954739,107640.0,107630.0,0.001]
[1751291764037,0.1857782,107630.0,107620.0,0.47798926]
[1751291764334,1.06305004,107630.0,107620.0,0.52232923]
[1751291764538,1.06305004,107630.0,107620.0,1.09908923]
[1751291764726,0.74648649,107630.0,107620.0,1.28488473]
[1751291765533,1.06305004,107630.0,107620.0,0.91473931]
[1751291766034,1.06405004,107630.0,107620.0,0.91573931]
[1751291766230,1.06405004,107630.0,107620.0,0.001]
[1751291766442,1.06405004,107630.0,107620.0,0.6649]
[1751291767838,1.06405004,107630.0,107610.0,0.21102542]
[1751291767839,0.1857954,107620.0,107610.0,0.21102542]
[1751291768145,1.02445895,107620.0,107610.0,0.97359812]
[1751291768746,1.02445895,107620.0,107610.0,0.27437157]
[1751291768941,1.02445895,107620.0,107610.0,0.98797157]
[1751291769245,1.02545895,107620.0,107610.0,0.98997157]
[1751291769443,1.02545895,107620.0,107610.0,0.91582615]
[1751291769643,1.05665895,107620.0,107610.0,0.91582615]
[1751291770839,1.05665895,107620.0,107610.0,0.73001345]
[1751291771045,1.07953956,107620.0,107610.0,0.73001345]
[1751291771246,1.07953956,107620.0,107610.0,0.20222625]
[1751291771445,1.07953956,107620.0,107610.0,0.91582625]
[1751291772547,1.07953956,107620.0,107610.0,0.73001345]
[1751291772750,1.05665895,107620.0,107610.0,0.15329345]
[1751291773053,1.05665895,107620.0,107610.0,0.73001345]
[1751291773646,1.07953976,107620.0,107610.0,0.73001345]
[1751291773844,1.05665895,107620.0,107610.0,0.01641345]
[1751291774046,0.1858128,107610.0,107600.0,0.59186614]
[1751291774250,1.01547635,107610.0,107600.0,0.59186614]
[1751291775044,1.01547635,107610.0,107600.0,0.59182614]
[1751291775353,1.01547635,107610.0,107600.0,0.01514614]
[1751291775544,1.01547635,107610.0,107600.0,0.01814614]
[1751291775749,1.01647635,107610.0,107600.0,0.01814614]
[1751291778150,0.3391128,107610.0,107600.0,0.52053969]
[1751291781154,0.3068128,107610.0,107600.0,0.97583969]
[1751291781659,0.3068128,107610.0,107600.0,1.04998511]
[1751291783864,0.3068128,107610.0,107600.0,0.68918511]
[1751291784162,0.3068128,107610.0,107600.0,1.04998511]
[1751291784362,0.3068128,107610.0,107600.0,0.97583969]
[1751291784754,0.3068128,107610.0,107600.0,0.61503969]
[1751291784960,0.3068128,107610.0,107600.0,0.97583969]
[1751291785351,0.3068128,107610.0,107600.0,0.29847614]
[1751291785556,0.3068128,107610.0,107600.0,0.61503969]
[1751291787765,0.3068128,107610.0,107600.0,0.97583969]
[1751291787966,0.121,107610.0,107600.0,0.97583969]
[1751291788167,0.3068128,107610.0,107600.0,0.97583969]
[1751291788464,0.3068128,107610.0,107600.0,1.04998511]
[1751291792868,0.3068128,107610.0,107600.0,1.14998511]
[1751291794672,0.3068128,107610.0,107600.0,0.71503969]
[1751291795369,0.3068128,107610.0,107600.0,0.39847614]
[1751291795573,0.3068128,107610.0,107600.0,0.94883614]
[1751291795870,0.3715128,107610.0,107600.0,1.26539969]
[1751291796272,0.3715128,107610.0,107600.0,0.23547614]
[1751291796571,0.3715128,107610.0,107600.0,1.26539969]
[1751291796771,0.7323128,107610.0,107600.0,0.76300614]
[1751291796974,0.7323128,107610.0,107600.0,0.94883624]
[1751291797168,0.75516728,107610.0,107600.0,0.94883624]
[1751291797368,0.75516728,107610.0,107600.0,0.18656614]
[1751291797573,0.75516728,107610.0,107600.0,0.94879624]
[1751291797770,0.75516728,107610.0,107600.0,0.37239624]
[1751291797965,0.75516728,107610.0,107600.0,0.94879624]
[1751291798366,0.7323128,107610.0,107600.0,0.94879624]
[1751291799570,0.75506122,107610.0,107600.0,0.94879624]
[1751291800679,0.7323128,107610.0,107600.0,0.94879624]
[1751291801875,0.7323128,107610.0,107600.0,0.37239624]
[1751291802178,1.08087635,107610.0,107600.0,0.91697624]
[1751291802478,1.08087635,107610.0,107600.0,0.73114614]
[1751291802977,1.08087635,107610.0,107600.0,0.15482614]
[1751291803172,1.08087635,107610.0,107600.0,0.73114614]
[1751291803774,1.08087635,107610.0,107600.0,0.716]
[1751291804278,1.08087635,107610.0,107600.0,0.71596]
[1751291806479,1.10361016,107610.0,107600.0,0.71596]
[1751291808776,1.10361016,107610.0,107600.0,0.003]
[1751291809081,1.10361016,107610.0,107600.0,0.593701]
[1751291809480,0.1858301,107600.0,107590.0,0.83732941]
[1751291809778,1.04609365,107600.0,107590.0,1.62439483]
[1751291810174,1.04609365,107600.0,107590.0,1.55024941]
[1751291810374,1.04609365,107600.0,107590.0,0.97400941]
[1751291810574,1.04609365,107600.0,107590.0,1.55020941]
[1751291811380,1.07179144,107600.0,107590.0,1.55420941]
[1751291811777,1.07179144,107600.0,107590.0,0.71780941]
[1751291813385,0.75522789,107600.0,107590.0,0.71780941]
[1751291813583,1.07179144,107600.0,107590.0,0.71780941]
[1751291813986,1.07179144,107600.0,107590.0,0.00492941]
[1751291814284,0.1858473,107590.0,107580.0,0.21197272]
[1751291814593,1.11210864,107590.0,107580.0,0.71284]
[1751291815487,1.11610864,107590.0,107580.0,0.71484]
[1751291816080,1.11610864,107590.0,107580.0,0.78741922]
[1751291818783,1.11610864,107590.0,107580.0,0.97328372]
[1751291818988,0.79954509,107590.0,107580.0,0.97328372]
[1751291819195,0.76804509,107590.0,107580.0,0.78741922]
[1751291820477,0.7453473,107590.0,107580.0,0.78741922]
[1751291820881,0.7453473,107590.0,107580.0,0.97328382]
[1751291821493,0.7453473,107590.0,107580.0,0.80194615]
[1751291821689,0.3253492,107560.0,107540.0,0.39466972]
[1751291821883,0.87911357,107560.0,107550.0,0.16882]
[1751291822085,0.87911357,107560.0,107550.0,0.90206003]
[1751291822284,0.94371357,107560.0,107550.0,0.90206003]
[1751291822485,0.94371357,107560.0,107550.0,0.80936]
[1751291822692,0.94371357,107560.0,107550.0,0.30587986]
[1751291822994,1.26027712,107560.0,107550.0,0.0321]
[1751291823189,0.1859164,107550.0,107540.0,0.00948462]
[1751291823388,0.7418164,107550.0,107540.0,0.74486]
[1751291824292,0.7418164,107550.0,107540.0,0.16882]
[1751291824590,0.7418164,107550.0,107530.0,0.00092993]
[1751291824591,0.1859337,107540.0,107530.0,0.00092993]
[1751291824791,0.7518337,107540.0,107530.0,0.63235619]
[1751291825093,0.7518337,107540.0,107530.0,0.75920107]
[1751291825898,0.7568337,107540.0,107530.0,0.75920107]
[1751291826300,0.7568337,107540.0,107530.0,0.94515207]
[1751291826497,0.7568337,107540.0,107530.0,0.75920107]
[1751291826692,0.7568337,107540.0,107530.0,0.94515207]
[1751291827092,0.7568337,107540.0,107530.0,0.95495881]
[1751291828490,0.6917337,107540.0,107530.0,0.95495881]
[1751291828794,0.3309336,107540.0,107530.0,1.66356236]
[1751291828994,0.3309336,107540.0,107530.0,1.67965122]
[1751291830496,0.145,107540.0,107530.0,1.67965122]
[1751291831298,0.3309336,107540.0,107530.0,1.67965122]
[1751291832298,0.3309336,107540.0,107530.0,1.69371186]
[1751291833498,0.1909336,107540.0,107530.0,1.69371186]
[1751291833698,0.1909336,107540.0,107530.0,1.34744408]
[1751291836306,0.1909336,107540.0,107530.0,1.34740408]
[1751291837707,0.1909336,107540.0,107530.0,1.70820408]